[Event "*** SCC Grand Prix: Titled Tuesday Blitz"]
[Site "Chess.com"]
[Date "2020.07.21"]
[Round "8"]
[White "vinniethepooh"]
[Black "AquivaRubinstein"]
[Result "0-1"]
[WhiteElo "2662"]
[BlackElo "2480"]
[TimeControl "180+1"]
[EndTime "11:36:01 PDT"]
[Termination "AquivaRubinstein won on time"]

1. d4 {[%clk 0:03:00.9]} 1... Nf6 {[%clk 0:02:57.7]} 2. c4 {[%clk 0:03:01.1]}
2... e6 {[%clk 0:02:57.7]} 3. Nc3 {[%clk 0:03:01.4]} 3... d5 {[%clk 0:02:57.9]}
4. cxd5 {[%clk 0:03:01.4]} 4... Nxd5 {[%clk 0:02:57.5]} 5. e4 {[%clk 0:03:01.4]}
5... Nxc3 {[%clk 0:02:57.6]} 6. bxc3 {[%clk 0:03:02.3]} 6... c5 {[%clk 0:02:58]}
7. Nf3 {[%clk 0:03:02.7]} 7... cxd4 {[%clk 0:02:57.5]} 8. cxd4 {[%clk
0:03:03.6]} 8... Bb4+ {[%clk 0:02:57.9]} 9. Bd2 {[%clk 0:03:04]} 9... Bxd2+
{[%clk 0:02:58.4]} 10. Qxd2 {[%clk 0:03:04.9]} 10... O-O {[%clk 0:02:58.9]} 11.
Bc4 {[%clk 0:03:05.1]} 11... Nd7 {[%clk 0:02:57.1]} 12. O-O {[%clk 0:03:05.1]}
12... b6 {[%clk 0:02:56.5]} 13. Rad1 {[%clk 0:02:58.9]} 13... Bb7 {[%clk
0:02:55.5]} 14. Rfe1 {[%clk 0:02:58.5]} 14... Rc8 {[%clk 0:02:55]} 15. Bd3
{[%clk 0:02:49]} 15... Re8 {[%clk 0:02:35.4]} 16. Bb1 {[%clk 0:02:34.3]} 16...
h6 {[%clk 0:02:11.9]} 17. Qf4 {[%clk 0:02:23.5]} 17... Qf6 {[%clk 0:02:05.5]}
18. Qd6 {[%clk 0:02:09.3]} 18... Qe7 {[%clk 0:02:03.6]} 19. Qg3 {[%clk
0:02:05.7]} 19... Nf6 {[%clk 0:01:44.8]} 20. d5 {[%clk 0:01:51.7]} 20... exd5
{[%clk 0:01:32.4]} 21. exd5 {[%clk 0:01:51.4]} 21... Qb4 {[%clk 0:01:28.7]} 22.
d6 {[%clk 0:01:34.5]} 22... Bxf3 {[%clk 0:01:23.1]} 23. Rxe8+ {[%clk 0:00:36.1]}
23... Rxe8 {[%clk 0:01:22.5]} 24. gxf3 {[%clk 0:00:29.3]} 24... Re1+ {[%clk
0:01:21.5]} 25. Rxe1 {[%clk 0:00:29.9]} 25... Qxe1+ {[%clk 0:01:21.5]} 26. Kg2
{[%clk 0:00:30.8]} 26... Qxb1 {[%clk 0:01:21.2]} 27. Qe5 {[%clk 0:00:31.4]}
27... Qg6+ {[%clk 0:01:03.9]} 28. Kf1 {[%clk 0:00:23.1]} 28... Qd3+ {[%clk
0:01:00.1]} 29. Kg2 {[%clk 0:00:22.4]} 29... h5 {[%clk 0:00:35.3]} 30. h4 {[%clk
0:00:20.1]} 30... Kh7 {[%clk 0:00:33]} 31. a4 {[%clk 0:00:17.8]} 31... a5 {[%clk
0:00:32]} 32. Qe7 {[%clk 0:00:15.6]} 32... Kg6 {[%clk 0:00:31.3]} 33. Qc7 {[%clk
0:00:12.7]} 33... Qd4 {[%clk 0:00:28.4]} 34. Qc6 {[%clk 0:00:10.9]} 34... Qxh4
{[%clk 0:00:25.2]} 35. Qxb6 {[%clk 0:00:06.8]} 35... Qg5+ {[%clk 0:00:25.4]} 36.
Kh1 {[%clk 0:00:05]} 36... Qd5 {[%clk 0:00:25.2]} 37. Kg2 {[%clk 0:00:03.5]}
37... h4 {[%clk 0:00:25.3]} 38. Qc7 {[%clk 0:00:02.9]} 38... h3+ {[%clk
0:00:25.4]} 39. Kg3 {[%clk 0:00:02.3]} 39... Nh5+ {[%clk 0:00:24.2]} 40. Kh2
{[%clk 0:00:02.3]} 40... Qe5+ {[%clk 0:00:23.7]} 41. Kh1 {[%clk 0:00:01.3]}
41... Nf4 {[%clk 0:00:22.5]} 0-1

[Event "*** SCC Grand Prix: Titled Tuesday Blitz"]
[Site "Chess.com"]
[Date "2020.07.21"]
[Round "8"]
[White "KratosKrieg"]
[Black "grandcoach"]
[Result "1/2-1/2"]
[WhiteElo "1929"]
[BlackElo "2120"]
[TimeControl "180+1"]
[EndTime "11:36:01 PDT"]
[Termination "Game drawn by repetition"]

1. e4 {[%clk 0:02:59.9]} 1... c5 {[%clk 0:02:59.3]} 2. Nf3 {[%clk 0:03:00]} 2...
Nc6 {[%clk 0:02:59.8]} 3. Bb5 {[%clk 0:03:00.1]} 3... e6 {[%clk 0:02:57.9]} 4.
O-O {[%clk 0:02:55.5]} 4... Nge7 {[%clk 0:02:58.5]} 5. Re1 {[%clk 0:02:54.8]}
5... a6 {[%clk 0:02:58.7]} 6. Bd3 {[%clk 0:02:55.2]} 6... d5 {[%clk 0:02:55.7]}
7. exd5 {[%clk 0:02:54]} 7... Nxd5 {[%clk 0:02:56.2]} 8. c3 {[%clk 0:02:54.5]}
8... Be7 {[%clk 0:02:53.4]} 9. Bc2 {[%clk 0:02:54.3]} 9... O-O {[%clk
0:02:51.5]} 10. d4 {[%clk 0:02:52.5]} 10... cxd4 {[%clk 0:02:52]} 11. cxd4
{[%clk 0:02:51.4]} 11... b5 {[%clk 0:02:33]} 12. Nc3 {[%clk 0:02:40.1]} 12...
Nxc3 {[%clk 0:02:26.4]} 13. bxc3 {[%clk 0:02:39.7]} 13... Bb7 {[%clk 0:02:26.2]}
14. Qd3 {[%clk 0:02:22.6]} 14... g6 {[%clk 0:02:25.5]} 15. Bh6 {[%clk
0:02:22.2]} 15... Re8 {[%clk 0:02:23.6]} 16. Rad1 {[%clk 0:01:58.7]} 16... Bf6
{[%clk 0:02:14.3]} 17. h3 {[%clk 0:01:00.6]} 17... Rc8 {[%clk 0:02:12.1]} 18.
Bf4 {[%clk 0:00:54]} 18... Qa5 {[%clk 0:02:04.6]} 19. Ra1 {[%clk 0:00:33.2]}
19... Ne7 {[%clk 0:01:56.6]} 20. Ne5 {[%clk 0:00:25.1]} 20... Rxc3 {[%clk
0:01:52.3]} 21. Qd2 {[%clk 0:00:21.2]} 21... Nd5 {[%clk 0:01:38.7]} 22. Nd7
{[%clk 0:00:20.5]} 22... Be7 {[%clk 0:01:27.1]} 23. Bb3 {[%clk 0:00:19.2]} 23...
Nxf4 {[%clk 0:01:14.4]} 24. Qxf4 {[%clk 0:00:20.1]} 24... Qc7 {[%clk 0:01:11.4]}
25. Nf6+ {[%clk 0:00:17.1]} 25... Bxf6 {[%clk 0:01:06.7]} 26. Qxf6 {[%clk
0:00:18]} 26... Qe7 {[%clk 0:01:00.3]} 27. Qf4 {[%clk 0:00:16.2]} 27... Qc7
{[%clk 0:00:57]} 28. Qf6 {[%clk 0:00:16]} 28... Rd8 {[%clk 0:00:50.4]} 29. Rad1
{[%clk 0:00:14.6]} 29... Bd5 {[%clk 0:00:47.5]} 30. Bxd5 {[%clk 0:00:13.2]}
30... Rxd5 {[%clk 0:00:47.3]} 31. Qh4 {[%clk 0:00:09.2]} 31... Rc2 {[%clk
0:00:37.1]} 32. Qh6 {[%clk 0:00:06]} 32... Rxa2 {[%clk 0:00:33.3]} 33. Re5
{[%clk 0:00:06.2]} 33... Rxe5 {[%clk 0:00:29.3]} 34. dxe5 {[%clk 0:00:06.6]}
34... Rc2 {[%clk 0:00:28.8]} 35. Qg5 {[%clk 0:00:04.5]} 35... f6 {[%clk
0:00:12]} 36. Qxf6 {[%clk 0:00:02]} 36... Rc1 {[%clk 0:00:11.7]} 37. Qxe6+
{[%clk 0:00:02.1]} 37... Kg7 {[%clk 0:00:11.9]} 38. Qf6+ {[%clk 0:00:02.3]}
38... Kg8 {[%clk 0:00:09.3]} 39. Qe6+ {[%clk 0:00:02.5]} 39... Kg7 {[%clk
0:00:08.6]} 40. Qf6+ {[%clk 0:00:02.8]} 40... Kg8 {[%clk 0:00:08.8]} 41. Qe6+
{[%clk 0:00:02.9]} 1/2-1/2

[Event "*** SCC Grand Prix: Titled Tuesday Blitz"]
[Site "Chess.com"]
[Date "2020.07.21"]
[Round "8"]
[White "rugbyclub"]
[Black "ChelsieMonica"]
[Result "0-1"]
[WhiteElo "2137"]
[BlackElo "2384"]
[TimeControl "180+1"]
[EndTime "11:36:04 PDT"]
[Termination "ChelsieMonica won by resignation"]

1. c4 {[%clk 0:03:00.4]} 1... e5 {[%clk 0:02:59.6]} 2. Nc3 {[%clk 0:02:59.8]}
2... Nc6 {[%clk 0:03:00.5]} 3. Nf3 {[%clk 0:03:00.3]} 3... Nf6 {[%clk
0:03:01.2]} 4. e3 {[%clk 0:03:00.5]} 4... Bb4 {[%clk 0:03:01.7]} 5. Qc2 {[%clk
0:03:00.5]} 5... Bxc3 {[%clk 0:03:02]} 6. Qxc3 {[%clk 0:03:00.8]} 6... d6 {[%clk
0:03:02]} 7. d4 {[%clk 0:03:00.6]} 7... exd4 {[%clk 0:03:02.9]} 8. Nxd4 {[%clk
0:03:00.6]} 8... O-O {[%clk 0:03:03.8]} 9. Be2 {[%clk 0:02:59.6]} 9... Re8
{[%clk 0:03:03.1]} 10. O-O {[%clk 0:02:58.2]} 10... Ne4 {[%clk 0:03:02.5]} 11.
Qc2 {[%clk 0:02:53.4]} 11... Nxd4 {[%clk 0:02:57.8]} 12. exd4 {[%clk 0:02:52.2]}
12... Bf5 {[%clk 0:02:54.7]} 13. Bd3 {[%clk 0:02:47.4]} 13... Bg6 {[%clk
0:02:54.8]} 14. Be3 {[%clk 0:02:32.1]} 14... d5 {[%clk 0:02:50.3]} 15. cxd5
{[%clk 0:02:28.3]} 15... Nf6 {[%clk 0:02:50.1]} 16. Bxg6 {[%clk 0:02:24.1]}
16... hxg6 {[%clk 0:02:51]} 17. Bg5 {[%clk 0:02:18.2]} 17... Rc8 {[%clk
0:02:50.2]} 18. Qb3 {[%clk 0:01:52.5]} 18... b6 {[%clk 0:02:19.2]} 19. Rac1
{[%clk 0:01:48.7]} 19... Qxd5 {[%clk 0:02:11.8]} 20. Bxf6 {[%clk 0:01:40.6]}
20... Qxb3 {[%clk 0:02:10.5]} 21. axb3 {[%clk 0:01:41]} 21... gxf6 {[%clk
0:02:11.4]} 22. Rc2 {[%clk 0:01:39.5]} 22... Re4 {[%clk 0:02:06.8]} 23. Rd1
{[%clk 0:01:39.1]} 23... Kf8 {[%clk 0:01:59.2]} 24. Kf1 {[%clk 0:01:38.6]} 24...
Ke7 {[%clk 0:01:58.9]} 25. f3 {[%clk 0:01:35.6]} 25... Re3 {[%clk 0:01:58.9]}
26. Rc3 {[%clk 0:01:35.4]} 26... Re6 {[%clk 0:01:57.7]} 27. b4 {[%clk 0:01:29]}
27... Kd7 {[%clk 0:01:53.2]} 28. Ra3 {[%clk 0:01:14.3]} 28... Ra8 {[%clk
0:01:47.3]} 29. Kf2 {[%clk 0:01:08.3]} 29... Rd6 {[%clk 0:01:35.2]} 30. Ke3
{[%clk 0:01:05.1]} 30... Kc6 {[%clk 0:01:34.4]} 31. Rda1 {[%clk 0:01:01.7]}
31... Kb7 {[%clk 0:01:34.2]} 32. Rd3 {[%clk 0:00:54]} 32... a6 {[%clk
0:01:32.1]} 33. h3 {[%clk 0:00:52.1]} 33... Re8+ {[%clk 0:01:31]} 34. Kf2 {[%clk
0:00:49.6]} 34... Red8 {[%clk 0:01:31.1]} 35. Ke3 {[%clk 0:00:44.6]} 35... f5
{[%clk 0:01:30.3]} 36. Rad1 {[%clk 0:00:41.5]} 36... g5 {[%clk 0:01:23.6]} 37.
f4 {[%clk 0:00:38.8]} 37... g4 {[%clk 0:01:23.8]} 38. Kf2 {[%clk 0:00:36.1]}
38... Rh8 {[%clk 0:01:18.4]} 39. hxg4 {[%clk 0:00:34.7]} 39... fxg4 {[%clk
0:01:18.4]} 40. f5 {[%clk 0:00:26.8]} 40... Rd5 {[%clk 0:01:17.3]} 41. Kg3
{[%clk 0:00:25.9]} 41... Rxf5 {[%clk 0:01:00]} 42. Kxg4 {[%clk 0:00:24.9]} 42...
Rf6 {[%clk 0:00:54.5]} 43. Kg5 {[%clk 0:00:15.4]} 43... Rf2 {[%clk 0:00:51.6]}
44. Rf3 {[%clk 0:00:10.2]} 44... Rg8+ {[%clk 0:00:42.4]} 45. Kf6 {[%clk
0:00:10]} 45... Rgxg2 {[%clk 0:00:42.2]} 46. Rxf2 {[%clk 0:00:07.6]} 46... Rxf2+
{[%clk 0:00:43.1]} 47. Ke7 {[%clk 0:00:07.7]} 47... Rxb2 {[%clk 0:00:43.3]} 48.
Kxf7 {[%clk 0:00:07.4]} 48... Rxb4 {[%clk 0:00:43.3]} 49. d5 {[%clk 0:00:08]}
49... Re4 {[%clk 0:00:43.2]} 50. d6 {[%clk 0:00:06.8]} 50... cxd6 {[%clk
0:00:42.7]} 51. Rxd6 {[%clk 0:00:07.5]} 51... a5 {[%clk 0:00:43.3]} 52. Kf6
{[%clk 0:00:06.3]} 52... Ka6 {[%clk 0:00:43.1]} 53. Kf5 {[%clk 0:00:06.7]} 53...
Re1 {[%clk 0:00:43.1]} 54. Rd8 {[%clk 0:00:04.8]} 54... a4 {[%clk 0:00:43.2]}
55. Kf4 {[%clk 0:00:05.2]} 55... b5 {[%clk 0:00:43.2]} 56. Kf3 {[%clk
0:00:05.3]} 56... Ka5 {[%clk 0:00:43.3]} 57. Kf2 {[%clk 0:00:05.8]} 57... Re7
{[%clk 0:00:43.3]} 0-1

[Event "*** SCC Grand Prix: Titled Tuesday Blitz"]
[Site "Chess.com"]
[Date "2020.07.21"]
[Round "8"]
[White "doons21"]
[Black "MathiasWomacka"]
[Result "0-1"]
[WhiteElo "2618"]
[BlackElo "2472"]
[TimeControl "180+1"]
[EndTime "11:36:05 PDT"]
[Termination "MathiasWomacka won on time"]

1. e4 {[%clk 0:02:55.4]} 1... c5 {[%clk 0:02:58.3]} 2. c3 {[%clk 0:02:55.2]}
2... d5 {[%clk 0:02:58]} 3. exd5 {[%clk 0:02:55]} 3... Qxd5 {[%clk 0:02:58.9]}
4. d4 {[%clk 0:02:55.6]} 4... Nf6 {[%clk 0:02:58.1]} 5. Nf3 {[%clk 0:02:56.1]}
5... e6 {[%clk 0:02:58.3]} 6. Bd3 {[%clk 0:02:55.4]} 6... Be7 {[%clk 0:02:56.9]}
7. O-O {[%clk 0:02:52.5]} 7... O-O {[%clk 0:02:56.4]} 8. Qe2 {[%clk 0:02:39.7]}
8... Nc6 {[%clk 0:02:45]} 9. Rd1 {[%clk 0:02:40]} 9... Rd8 {[%clk 0:02:34.2]}
10. Be3 {[%clk 0:02:30.5]} 10... Ng4 {[%clk 0:02:24.4]} 11. dxc5 {[%clk
0:02:26.3]} 11... Nxe3 {[%clk 0:02:19.8]} 12. Bxh7+ {[%clk 0:02:20.7]} 12...
Kxh7 {[%clk 0:02:19.2]} 13. Rxd5 {[%clk 0:02:21.6]} 13... Nxd5 {[%clk
0:02:18.8]} 14. Nbd2 {[%clk 0:02:14]} 14... Bxc5 {[%clk 0:02:13.3]} 15. Ng5+
{[%clk 0:02:10.2]} 15... Kg6 {[%clk 0:01:53.4]} 16. h4 {[%clk 0:01:41.8]} 16...
f6 {[%clk 0:01:36.9]} 17. Nxe6 {[%clk 0:00:52.2]} 17... Bxe6 {[%clk 0:01:20.4]}
18. Qxe6 {[%clk 0:00:53.1]} 18... Kh7 {[%clk 0:00:56.9]} 19. c4 {[%clk
0:00:43.5]} 19... Nde7 {[%clk 0:00:54.1]} 20. Ne4 {[%clk 0:00:42.5]} 20... Bd4
{[%clk 0:00:52.6]} 21. Rd1 {[%clk 0:00:34.6]} 21... Kh8 {[%clk 0:00:42.8]} 22.
Nd6 {[%clk 0:00:23.3]} 22... Rf8 {[%clk 0:00:33.5]} 23. b4 {[%clk 0:00:18.5]}
23... Be5 {[%clk 0:00:26.7]} 24. Nf7+ {[%clk 0:00:18.4]} 24... Kh7 {[%clk
0:00:25.7]} 25. b5 {[%clk 0:00:15.8]} 25... Nd4 {[%clk 0:00:25.6]} 26. Qxe7
{[%clk 0:00:15.8]} 26... Rae8 {[%clk 0:00:22]} 27. Qxb7 {[%clk 0:00:15.9]} 27...
Ne2+ {[%clk 0:00:17.2]} 28. Kf1 {[%clk 0:00:15.2]} 28... Nc3 {[%clk 0:00:17.3]}
29. Rd7 {[%clk 0:00:14.8]} 29... Bf4 {[%clk 0:00:14.6]} 30. Ng5+ {[%clk
0:00:13.8]} 30... fxg5 {[%clk 0:00:13.1]} 31. Rxg7+ {[%clk 0:00:14.1]} 31... Kh6
{[%clk 0:00:13.5]} 32. Rh7+ {[%clk 0:00:12.5]} 32... Kg6 {[%clk 0:00:13.8]} 33.
Qg7+ {[%clk 0:00:11.9]} 33... Kf5 {[%clk 0:00:14.1]} 34. hxg5 {[%clk 0:00:09.5]}
34... Bxg5 {[%clk 0:00:12.8]} 35. Rh5 {[%clk 0:00:08.8]} 35... Ne4 {[%clk
0:00:12.7]} 36. g3 {[%clk 0:00:05.5]} 36... Rg8 {[%clk 0:00:06.1]} 37. Qh7+
{[%clk 0:00:05]} 37... Ke5 {[%clk 0:00:06.1]} 38. f4+ {[%clk 0:00:03.7]} 38...
Kd4 {[%clk 0:00:06.4]} 39. Qd7+ {[%clk 0:00:02.8]} 39... Kc3 {[%clk 0:00:06.3]}
0-1

[Event "*** SCC Grand Prix: Titled Tuesday Blitz"]
[Site "Chess.com"]
[Date "2020.07.21"]
[Round "8"]
[White "Antipov_Mikhail_Al"]
[Black "ArjunErigaisi2003"]
[Result "0-1"]
[WhiteElo "2857"]
[BlackElo "3050"]
[TimeControl "180+1"]
[EndTime "11:36:06 PDT"]
[Termination "ArjunErigaisi2003 won on time"]

1. e4 {[%clk 0:03:00.9]} 1... c5 {[%clk 0:02:59.9]} 2. Nf3 {[%clk 0:03:00.8]}
2... d6 {[%clk 0:02:59.6]} 3. d4 {[%clk 0:03:00.8]} 3... cxd4 {[%clk 0:03:00.5]}
4. Nxd4 {[%clk 0:03:01.7]} 4... Nf6 {[%clk 0:03:01.2]} 5. f3 {[%clk 0:03:02.1]}
5... a6 {[%clk 0:03:01.7]} 6. c4 {[%clk 0:03:02.1]} 6... g6 {[%clk 0:02:59.5]}
7. Nc3 {[%clk 0:03:01.1]} 7... Bg7 {[%clk 0:03:00]} 8. Be3 {[%clk 0:02:59.7]}
8... O-O {[%clk 0:03:00.3]} 9. g4 {[%clk 0:02:56.4]} 9... Nc6 {[%clk 0:02:56.8]}
10. Qd2 {[%clk 0:02:56]} 10... Bd7 {[%clk 0:02:53.7]} 11. Nxc6 {[%clk
0:02:37.9]} 11... Bxc6 {[%clk 0:02:49.4]} 12. Bh6 {[%clk 0:02:38.4]} 12... Bxh6
{[%clk 0:02:33.8]} 13. Qxh6 {[%clk 0:02:39.3]} 13... b5 {[%clk 0:02:34.5]} 14.
h4 {[%clk 0:02:33.3]} 14... bxc4 {[%clk 0:02:07.8]} 15. h5 {[%clk 0:02:30.2]}
15... Qb6 {[%clk 0:02:01.3]} 16. hxg6 {[%clk 0:01:37.9]} 16... Qxb2 {[%clk
0:01:43.7]} 17. Rc1 {[%clk 0:01:25.9]} 17... fxg6 {[%clk 0:01:29.8]} 18. Bxc4+
{[%clk 0:01:06.8]} 18... Kh8 {[%clk 0:01:29.4]} 19. Rh2 {[%clk 0:00:51.5]} 19...
Qb4 {[%clk 0:00:52]} 20. Bb3 {[%clk 0:00:31.8]} 20... Qd4 {[%clk 0:00:31.1]} 21.
Ne2 {[%clk 0:00:26.3]} 21... Qb4+ {[%clk 0:00:26.1]} 22. Kd1 {[%clk 0:00:26.7]}
22... Ba4 {[%clk 0:00:20.4]} 23. Nf4 {[%clk 0:00:15.1]} 23... Bxb3+ {[%clk
0:00:18.6]} 24. axb3 {[%clk 0:00:16]} 24... Qxb3+ {[%clk 0:00:18.9]} 25. Ke2
{[%clk 0:00:13.5]} 25... Qb2+ {[%clk 0:00:14.6]} 26. Kd1 {[%clk 0:00:13.8]}
26... Qb3+ {[%clk 0:00:14.3]} 27. Kd2 {[%clk 0:00:13]} 27... Qb4+ {[%clk
0:00:09.1]} 28. Kd3 {[%clk 0:00:08.6]} 28... Qb5+ {[%clk 0:00:08.2]} 29. Rc4
{[%clk 0:00:08.2]} 29... Qb1+ {[%clk 0:00:07.9]} 30. Rcc2 {[%clk 0:00:08]} 30...
Qb3+ {[%clk 0:00:07.8]} 31. Kd2 {[%clk 0:00:08.3]} 31... Qxf3 {[%clk 0:00:07.5]}
32. Nxg6+ {[%clk 0:00:08.1]} 32... Kg8 {[%clk 0:00:08.1]} 33. Nxe7+ {[%clk
0:00:08.5]} 33... Kf7 {[%clk 0:00:08.7]} 34. Nf5 {[%clk 0:00:08.3]} 34... Nxe4+
{[%clk 0:00:08.9]} 35. Ke1 {[%clk 0:00:07.3]} 35... Qxg4 {[%clk 0:00:03.7]} 36.
Qxh7+ {[%clk 0:00:03.2]} 36... Kf6 {[%clk 0:00:02.7]} 37. Rcg2 {[%clk
0:00:01.8]} 37... Qxf5 {[%clk 0:00:02]} 38. Rh6+ {[%clk 0:00:02]} 38... Ke5
{[%clk 0:00:02.4]} 0-1

[Event "*** SCC Grand Prix: Titled Tuesday Blitz"]
[Site "Chess.com"]
[Date "2020.07.21"]
[Round "8"]
[White "Zmof"]
[Black "ikhasu"]
[Result "0-1"]
[WhiteElo "2180"]
[BlackElo "2389"]
[TimeControl "180+1"]
[EndTime "11:36:06 PDT"]
[Termination "ikhasu won by checkmate"]

1. e4 {[%clk 0:02:58.9]} 1... e5 {[%clk 0:02:59.4]} 2. Bc4 {[%clk 0:02:58.2]}
2... Nf6 {[%clk 0:02:57.5]} 3. d3 {[%clk 0:02:58.6]} 3... Nc6 {[%clk 0:02:56.2]}
4. Nf3 {[%clk 0:02:58.7]} 4... Bc5 {[%clk 0:02:48.3]} 5. O-O {[%clk 0:02:56.8]}
5... d6 {[%clk 0:02:46]} 6. c3 {[%clk 0:02:54.4]} 6... Bb6 {[%clk 0:02:44.1]} 7.
Nbd2 {[%clk 0:02:46.3]} 7... Ne7 {[%clk 0:02:43.8]} 8. Re1 {[%clk 0:02:43.6]}
8... Ng6 {[%clk 0:02:42.3]} 9. Nf1 {[%clk 0:02:43.5]} 9... O-O {[%clk
0:02:42.1]} 10. Ng3 {[%clk 0:02:40.1]} 10... c6 {[%clk 0:02:40.4]} 11. Bb3
{[%clk 0:02:35.7]} 11... h6 {[%clk 0:02:38.6]} 12. h3 {[%clk 0:02:31.1]} 12...
Re8 {[%clk 0:02:36.4]} 13. d4 {[%clk 0:02:29.1]} 13... Be6 {[%clk 0:02:23]} 14.
Bxe6 {[%clk 0:02:26]} 14... Rxe6 {[%clk 0:02:22]} 15. Be3 {[%clk 0:02:15.8]}
15... exd4 {[%clk 0:02:02.8]} 16. Bxd4 {[%clk 0:02:15.3]} 16... c5 {[%clk
0:01:55.6]} 17. Bxf6 {[%clk 0:02:14.5]} 17... Qxf6 {[%clk 0:01:55.2]} 18. Nh5
{[%clk 0:02:02.9]} 18... Qe7 {[%clk 0:01:53.8]} 19. Qd5 {[%clk 0:01:58.3]} 19...
Re8 {[%clk 0:01:49.3]} 20. Rad1 {[%clk 0:01:49.9]} 20... Ne5 {[%clk 0:01:40.4]}
21. Nxe5 {[%clk 0:01:47.2]} 21... Rxe5 {[%clk 0:01:40.3]} 22. Qxd6 {[%clk
0:01:35.6]} 22... Rxh5 {[%clk 0:01:25.8]} 23. Qf4 {[%clk 0:01:24.6]} 23... Re5
{[%clk 0:01:23]} 24. f3 {[%clk 0:01:19.9]} 24... c4+ {[%clk 0:01:22.7]} 25. Kh1
{[%clk 0:01:20.3]} 25... Rh5 {[%clk 0:01:18]} 26. Qg4 {[%clk 0:01:11]} 26... Rg5
{[%clk 0:01:16.6]} 27. Qd7 {[%clk 0:01:03.3]} 27... Ra5 {[%clk 0:00:59.2]} 28.
a3 {[%clk 0:00:58.2]} 28... Rc5 {[%clk 0:00:48.9]} 29. Qd4 {[%clk 0:00:47.2]}
29... Rc6 {[%clk 0:00:44.3]} 30. Qd5 {[%clk 0:00:47.4]} 30... Rc5 {[%clk
0:00:42.4]} 31. Qd4 {[%clk 0:00:46.8]} 31... Bc7 {[%clk 0:00:40.5]} 32. Kg1
{[%clk 0:00:30.9]} 32... Rg5 {[%clk 0:00:31.7]} 33. Qxc4 {[%clk 0:00:29]} 33...
Qe5 {[%clk 0:00:30.1]} 34. Kf1 {[%clk 0:00:19.2]} 34... Qh2 {[%clk 0:00:27.6]}
35. Rd2 {[%clk 0:00:15.3]} 35... Qh1+ {[%clk 0:00:15.3]} 36. Ke2 {[%clk
0:00:15]} 36... Rxg2+ {[%clk 0:00:13.6]} 37. Kd1 {[%clk 0:00:15.5]} 37... Rxd2+
{[%clk 0:00:13.4]} 38. Kxd2 {[%clk 0:00:16]} 38... Rd8+ {[%clk 0:00:13.4]} 39.
Ke2 {[%clk 0:00:11.6]} 39... Qg2+ {[%clk 0:00:13.1]} 40. Ke3 {[%clk 0:00:12]}
40... Bb6+ {[%clk 0:00:12]} 41. Kf4 {[%clk 0:00:11]} 41... Qg5# {[%clk
0:00:11.5]} 0-1

[Event "*** SCC Grand Prix: Titled Tuesday Blitz"]
[Site "Chess.com"]
[Date "2020.07.21"]
[Round "8"]
[White "FontVella8"]
[Black "GMKrikor"]
[Result "0-1"]
[WhiteElo "2588"]
[BlackElo "2722"]
[TimeControl "180+1"]
[EndTime "11:36:07 PDT"]
[Termination "GMKrikor won by resignation"]

1. b3 {[%clk 0:03:00.9]} 1... b6 {[%clk 0:02:57.1]} 2. Bb2 {[%clk 0:03:00.7]}
2... Bb7 {[%clk 0:02:58]} 3. Nf3 {[%clk 0:03:00.8]} 3... Nf6 {[%clk 0:02:53.6]}
4. g3 {[%clk 0:03:00.8]} 4... e6 {[%clk 0:02:51]} 5. Bg2 {[%clk 0:03:00.9]} 5...
d5 {[%clk 0:02:50.1]} 6. O-O {[%clk 0:03:00.9]} 6... Be7 {[%clk 0:02:50.5]} 7.
d3 {[%clk 0:03:01.3]} 7... O-O {[%clk 0:02:49.7]} 8. Nbd2 {[%clk 0:03:01.6]}
8... c5 {[%clk 0:02:49.8]} 9. Ne5 {[%clk 0:02:51.6]} 9... Nfd7 {[%clk
0:02:46.5]} 10. e4 {[%clk 0:02:49.1]} 10... Nxe5 {[%clk 0:02:24.7]} 11. Bxe5
{[%clk 0:02:50]} 11... Nc6 {[%clk 0:02:24.6]} 12. Bb2 {[%clk 0:02:49.1]} 12...
d4 {[%clk 0:02:18.3]} 13. f4 {[%clk 0:02:47.1]} 13... f5 {[%clk 0:02:18.1]} 14.
a4 {[%clk 0:02:40.7]} 14... Bd6 {[%clk 0:02:05.9]} 15. Qe2 {[%clk 0:02:38.7]}
15... Qd7 {[%clk 0:02:04.5]} 16. Rae1 {[%clk 0:02:34.2]} 16... Rae8 {[%clk
0:02:03.6]} 17. Nc4 {[%clk 0:02:30.1]} 17... Bc7 {[%clk 0:02:03.5]} 18. Bc1
{[%clk 0:02:21.3]} 18... a6 {[%clk 0:01:58.5]} 19. g4 {[%clk 0:02:12.4]} 19...
b5 {[%clk 0:01:55.3]} 20. axb5 {[%clk 0:02:11.6]} 20... axb5 {[%clk 0:01:56.2]}
21. Na3 {[%clk 0:02:08.4]} 21... Nb4 {[%clk 0:01:49]} 22. gxf5 {[%clk
0:01:01.7]} 22... exf5 {[%clk 0:01:38.6]} 23. e5 {[%clk 0:01:00.8]} 23... Bxg2
{[%clk 0:01:34.1]} 24. Qxg2 {[%clk 0:01:00.4]} 24... Re6 {[%clk 0:01:20.4]} 25.
Rf3 {[%clk 0:00:58.2]} 25... Nd5 {[%clk 0:01:12.1]} 26. Rg3 {[%clk 0:00:58.1]}
26... Rb8 {[%clk 0:01:08.9]} 27. Rg5 {[%clk 0:00:49.6]} 27... Bd8 {[%clk
0:00:57.4]} 28. Rg3 {[%clk 0:00:29.9]} 28... Bh4 {[%clk 0:00:55.1]} 29. Bd2
{[%clk 0:00:09.3]} 29... Bxg3 {[%clk 0:00:53.9]} 30. hxg3 {[%clk 0:00:10.2]}
30... Qc6 {[%clk 0:00:43.4]} 31. Kf2 {[%clk 0:00:09.8]} 31... Nb4 {[%clk
0:00:32.1]} 32. Bxb4 {[%clk 0:00:06.8]} 32... cxb4 {[%clk 0:00:28.2]} 33. Nb1
{[%clk 0:00:01.9]} 33... Qxc2+ {[%clk 0:00:16.3]} 34. Kg1 {[%clk 0:00:02.3]}
34... Qxg2+ {[%clk 0:00:14.9]} 35. Kxg2 {[%clk 0:00:03.2]} 35... Rc8 {[%clk
0:00:14.7]} 36. Nd2 {[%clk 0:00:03.5]} 36... Rc3 {[%clk 0:00:12.4]} 37. Nf3
{[%clk 0:00:03.8]} 37... Rxd3 {[%clk 0:00:11.7]} 38. Ng5 {[%clk 0:00:03.8]}
38... Re8 {[%clk 0:00:11.9]} 39. e6 {[%clk 0:00:04.3]} 39... h6 {[%clk
0:00:11.9]} 40. Nf7 {[%clk 0:00:04.5]} 40... Re3 {[%clk 0:00:05.9]} 41. Rxe3
{[%clk 0:00:03]} 41... dxe3 {[%clk 0:00:06.8]} 42. Nd6 {[%clk 0:00:03.5]} 42...
Rxe6 {[%clk 0:00:06.4]} 43. Kf1 {[%clk 0:00:03.8]} 43... Rxd6 {[%clk 0:00:06.2]}
44. Ke2 {[%clk 0:00:03.6]} 44... Rc6 {[%clk 0:00:06.7]} 0-1